Cogmind - Beta 10.1 --- EXPLORER MODE // 2020.10.08 @ 09:45:45 Player: Luigi Panache Result: Destroyed by D-53 Grenadier with Mini Grenade Launcher Performance ------------- Evolutions (0) 0 Regions Visited (2) 400 Robots Destroyed (15) 75 Value Destroyed (311) 311 Prototype IDs (0) 0 Alien Tech Used (0) 0 Bonus (0) 0 TOTAL SCORE: 786 Bonus ------- None Cogmind --------- Core Integrity 0/250 Matter 300/300 Energy 125/125 System Corruption 3% Temperature Cool (0) Movement Core (1150) Ox22 Location -10/Mines Parts ------- > --- POWER (1) -------- Light Ion Engine > --- PROPULSION (2) --- (None) > --- UTILITY (3) ------ High-capacity Storage Unit High-capacity Storage Unit > --- WEAPON (2) ------- (None) > --- INVENTORY (20) --- Ion Engine Light Ion Engine Aluminum Leg High-capacity Storage Unit High-capacity Storage Unit High-capacity Storage Unit Compact Matter Pod (150) Improved Terrain Scanner Seismic Analyzer Targeting Computer Propulsion Shielding Assault Rifle Peak State ------------ > --- POWER ------------ Light Ion Engine > --- PROPULSION ------- Aluminum Leg Aluminum Leg > --- UTILITY ---------- Medium Storage Unit Improved Terrain Scanner Improved Terrain Scanner > --- WEAPON ----------- EM Pulse Gun Light Assault Rifle > --- INVENTORY -------- Ion Engine Light Ion Engine Light Treads Light Treads Seismic Analyzer Targeting Computer Propulsion Shielding Assault Rifle [Rating: 10] Favorites ----------- Power Light Ion Engine Engine Light Ion Engine Propulsion Aluminum Leg Leg Aluminum Leg Utility High-capacity Storage Unit Device Improved Sensor Array Storage High-capacity Storage Unit Processor Targeting Computer Weapon Light Assault Rifle Energy Gun EM Pulse Gun Ballistic Gun Light Assault Rifle Build | -11 -10 -10 ------- Run | Scr Mat Min Slots Evolved 1 | . 1 . Power . | . . . Propulsion . | . . . Utility 1 | . 1 . Weapon . | . . . Parts Attached 16 | 8 8 . Power 1 | 1 . . Engine 1 | 1 . . Core . | . . . Reactor . | . . . Propulsion 2 | 2 . . Treads . | . . . Leg 2 | 2 . . Wheel . | . . . Hover . | . . . Flight . | . . . Utility 9 | 3 6 . Device 3 | 1 2 . Storage 5 | 1 4 . Processor 1 | 1 . . Hackware . | . . . Protection . | . . . Artifact . | . . . Weapon 4 | 2 2 . Energy Gun 3 | 1 2 . Energy Cannon . | . . . Ballistic Gun 1 | 1 . . Ballistic Cannon . | . . . Launcher . | . . . Special Weapon . | . . . Impact Weapon . | . . . Slashing Weapon . | . . . Piercing Weapon . | . . . Special Melee Weapon . | . . . Unidentified Prototypes . | . . . Parts Lost 5 | . . 5 Power . | . . . Propulsion 2 | . . 2 Utility 1 | . . 1 Weapon 2 | . . 2 Highest Loss Streak 5 | . . 5 Average Slot Usage (%) 98 | . 98 95 Engine 12 | . 12 12 Leg 24 | . 25 23 Device 14 | . 14 10 Storage 21 | . 21 25 Energy Gun 11 | . 11 11 Ballistic Gun 11 | . 12 10 Naked Turns . | . . . Heaviest Build 71 | 15 71 71 Greatest Support 20 | 20 20 20 Greatest Overweight (x) 22 | . 3 22 Average Overweight (x) 1 | . 1 3 Largest Inventory Capacity 20 | 8 20 20 Average Capacity 16 | 7 16 20 Most Carried 12 | 8 12 12 Average Carried 9 | 4 10 11 Final Capacity 20 | 8 20 20 Final Carried 12 | 8 11 12 Class Distribution -------------------- 100% | Hacker-Mutant Dominant Class ---------------- Hacker-Mutant | -10/Materials Hacker-Mutant | -10/Mines Resources | -11 -10 -10 ----------- Run | Scr Mat Min Matter Collected 371 | 287 79 5 Remotely . | . . . Salvage Created 407 | 107 300 . Parts 25 | 6 19 . Haulers Intercepted . | . . . Recyclers Shooed 1 | . 1 . Parts Field Recycled . | . . . Retrieved Matter . | . . . Parts Self-Destructed . | . . . Prevented . | . . . Kills | -11 -10 -10 ------- Run | Scr Mat Min Combat Hostiles Destroyed 9 | . 9 . Guns 8 | . 8 . AOE 1 | . 1 . Classes Destroyed 5 | 2 3 . Tunneler 2 | 2 . . Recycler 1 | 1 . . Watcher 3 | . 3 . Swarmer 4 | . 4 . Grunt 5 | . 5 . Best Kill Streak 2 | 2 2 . Combat Bots Only 2 | . 2 . Max Kills in Single Turn 1 | 1 1 . Gunslinging . | . . . Exploded 1 | . 1 . Melee . | . . . Uniques/NPCs Destroyed . | . . . Combat | -11 -10 -10 -------- Run | Scr Mat Min Damage Taken 796 | . 199 597 Core 277 | . 57 220 Absorbed by Shields . | . . . Core Remaining (%) 100 | 100 . . Volleys Fired 28 | 7 21 . Largest 2 | 2 2 . Hottest 70 | 70 70 . Shots Fired 52 | 10 42 . Gun 52 | 10 42 . Cannon . | . . . Launcher . | . . . Special . | . . . Kinetic 28 | 7 21 . Thermal 7 | 3 4 . Explosive . | . . . Electromagnetic 17 | . 17 . Robot Hit Streak 12 | 4 12 . Robot Miss Streak 2 | 2 1 . Penetration Max . | . . . Secondary Targets 1 | . 1 . Max Gunslinging Chain 1 | . 1 . Shots Hit Robots 35 | 6 29 . Core Hits 19 | 5 14 . Critical Hits . | . . . Critical Kills . | . . . Critical Parts Destroyed . | . . . Melee Attacks . | . . . Impact . | . . . Slashing . | . . . Piercing . | . . . Sneak Attacks . | . . . Combat Hostiles . | . . . Follow-up Attacks . | . . . Damage Inflicted 686 | 58 628 . Guns 379 | 58 321 . Cannons . | . . . Explosions 229 | . 229 . Melee . | . . . Ramming 78 | . 78 . Kinetic 83 | 33 50 . Thermal 205 | 25 180 . Explosive 100 | . 100 . Electromagnetic 220 | . 220 . Impact . | . . . Slashing . | . . . Piercing . | . . . Highest Corruption 3 | . 3 3 Average Corruption 2 | . 2 3 Corruption Purged . | . . . Effects 14 | . 9 5 Message Errors 5 | . 5 . Matter Fused 2 | . . 2 Heat Flow Errors 3 | . 2 1 Energy Discharges 1 | . 1 . Data Loss (minor) 3 | . 1 2 Overload Shots . | . . . Overflow Damage 25 | . 25 . Projectiles . | . . . Explosions 25 | . 25 . Melee . | . . . Knockbacks 1 | . 1 . Impact 1 | . 1 . Kinetic . | . . . Secondary . | . . . Self-Inflicted Damage 50 | . 50 . Shots 1 | . 1 . Rammed 6 | . 6 . Targets Rammed 8 | . 8 . Kicked 2 | . 2 . Crushed . | . . . Highest Temperature 198 | 50 121 198 Average Temperature 41 | 26 34 102 Received Heat Transfer 89 | . 69 20 Siege Activations . | . . . Robots Corrupted . | . . . Combat Hostiles . | . . . Parts Fried . | . . . Impact Corruptions . | . . . Robots Melted . | . . . Combat Hostiles . | . . . Parts Melted 1 | . 1 . Heat Transferred 322 | 74 248 . Parts Sabotaged . | . . . Parts Stolen . | . . . Parts Stripped . | . . . Power Chain Reactions 3 | . 3 . Missiles Intercepted . | . . . Alert | -11 -10 -10 ------- Run | Scr Mat Min Peak Influence 226 | 15 226 1 Initial 7 | . 7 1 Average 34 | 7 41 . Maximum Alert Level 1 | . 1 . Low Security (%) 96 | 100 95 100 Level 1 3 | . 4 . Level 2 . | . . . Level 3 . | . . . Level 4 . | . . . Level 5 . | . . . High Security . | . . . Max Security . | . . . Squads Dispatched . | . . . Investigation . | . . . Extermination . | . . . Reinforcement . | . . . Assault . | . . . Garrison . | . . . Intercept . | . . . Construction Impeded . | . . . Haulers Reinforced . | . . . Stealth | -11 -10 -10 --------- Run | Scr Mat Min Distress Signals 1 | . 1 . Communications Jammed . | . . . Distress Signals . | . . . Times Spotted 35 | . 16 19 Peak Tracking Total 18 | . 3 18 Tactical Retreats 1 | . . 1 Traps | -11 -10 -10 ------- Run | Scr Mat Min Traps Triggered 3 | . 3 . Indirectly . | . . . Trap Hack Attempts . | . . . Triggered . | . . . Disarmed . | . . . Reprogrammed . | . . . Reused . | . . . Traps Extracted . | . . . Installed . | . . . Triggered . | . . . Machines | -11 -10 -10 ---------- Run | Scr Mat Min Machines Disabled 2 | . 2 . Max in Single Turn 2 | . 2 . Machines Sabotaged . | . . . Garrisons Compromised . | . . . Overloaded Fab Kills . | . . . Fab Network Shutdowns . | . . . Hacking | -11 -10 -10 --------- Run | Scr Mat Min Machines Accessed 6 | . 6 . Terminals 5 | . 5 . Fabricators . | . . . Repair Stations 1 | . 1 . Recycling Units . | . . . Scanalyzers . | . . . Garrison Access . | . . . Total Hacks 10 | . 10 . Successful 6 | . 6 . Failed 4 | . 4 . Catastrophic 1 | . 1 . Database Lockouts . | . . . Manual 8 | . 8 . Terminals 8 | . 8 . Fabricators . | . . . Repair Stations 2 | . 2 . Recycling Units . | . . . Scanalyzers . | . . . Garrison Access . | . . . Terminal Hacks 3 | . 3 . Branch Access Points 1 | . 1 . Terminal Index 1 | . 1 . Unreport Threat 1 | . 1 . Fabricator Hacks . | . . . Repair Station Hacks 2 | . 2 . Scan Component 1 | . 1 . Repair 1 | . 1 . Recycling Unit Hacks . | . . . Scanalyzer . | . . . Garrison Access Hacks . | . . . Unauthorized Hacks 1 | . 1 . Terminals 1 | . 1 . Operators 1 | . 1 . Fabricators . | . . . Repair Stations . | . . . Recycling Units . | . . . Scanalyzers . | . . . Garrison Access . | . . . Data Cores Recovered . | . . . Used . | . . . Hacking Detections 3 | . 3 . Full Trace Events . | . . . Feedback Events . | . . . Feedback Blocked . | . . . Robot Schematics Acquired . | . . . Robots Built . | . . . Matter . | . . . Time . | . . . Total Robot Build Rating . | . . . Part Schematics Acquired . | . . . Parts Built . | . . . Matter . | . . . Time . | . . . Total Part Build Rating . | . . . Parts Repaired 1 | . 1 . Time 26 | . 26 . Parts Recycled . | . . . Recycled Matter . | . . . Retrieved Matter . | . . . Retrieved Components . | . . . Parts Scanalyzed . | . . . Part Schematics Acquired . | . . . Parts Damaged . | . . . Bothacking | -11 -10 -10 ------------ Run | Scr Mat Min Used RIF Installer . | . . . Robots Hacked . | . . . Non-combat . | . . . Combat . | . . . Robot Hacks Applied . | . . . Relay Couplers Released . | . . . Robots Rewired . | . . . Allies Hacked . | . . . Hacks Repelled . | . . . Allies | -11 -10 -10 -------- Run | Scr Mat Min Total Allies . | . . . Largest Group . | . . . Highest-Rated Group . | . . . Highest-Rated Ally . | . . . Total Orders . | . . . Ally Attacks . | . . . Total Damage . | . . . Kills . | . . . Allies Corrupted . | . . . Allies Melted . | . . . Intel | -11 -10 -10 ------- Run | Scr Mat Min Robot Analysis Total . | . . . Derelict Logs Recovered 1 | . . 1 Drone Launches . | . . . Drone Recoveries . | . . . Exploration | -11 -10 -10 ------------- Run | Scr Mat Min Turns Passed 1744 | 129 1423 192 Spaces Moved 878 | 82 708 88 Core 10 | 9 . 1 Treads . | . . . Legs 868 | 73 708 87 Wheels . | . . . Hover . | . . . Flight . | . . . Fastest Speed 50 | 50 120 210 Average Speed 174 | 112 175 220 Slowest Speed 1150 | 120 210 1150 Overloaded Moves . | . . . Propulsion Burnouts . | . . . Robots Hopped . | . . . Cave-ins Triggered . | . . . Exploration Rate (%) 42 | 5 92 30 Regions Visited 2 Branch Regions 1 Pre-discovered Areas . | . . . Known Exits Taken 2 | 1 1 . Unknown Exits Taken . | . . . Scrap Searched . | . . . Spaces Dug . | . . . Terrain Destroyed 48 | . 48 . Melee . | . . . Projectile . | . . . AOE 48 | . 48 . Terrain Rammed . | . . . Walls Destroyed . | . . . Machines Disabled . | . . . Actions | -11 -10 -10 --------- Run | Scr Mat Min Total 1040 | 107 844 89 Wait 85 | . 85 . Move 876 | 81 707 88 Hop . | . . . Pick Up 16 | 9 6 1 Fast Attach 13 | 8 5 . Attach . | . . . Detach . | . . . Swap 3 | . 3 . Drop 11 | 2 9 . Fire 28 | 7 21 . Melee . | . . . Ram . | . . . Kick 8 | . 8 . Crush . | . . . Escape Stasis . | . . . Rewire . | . . . Trap . | . . . Miscellaneous . | . . . Route ------- -11/Scrapyard -10/Materials (discovered 5 exits: *Mat x3 / *Min x2) -10/Mines (discovered 1 exit: *Mat) History --------- Turn | Location | Event 10 | -11/Scrapyard | Identified exit to Materials 10 | -11/Scrapyard | Discovered exit to Materials (range 15) 130 | -11/Scrapyard | Entered Materials 130 | -10/Materials | Evolved 1 slot: Utility x1 155 | -10/Materials | Identified exit to Mines 313 | -10/Materials | Build established: Hacker-Mutant 632 | -10/Materials | Identified exit to Materials 632 | -10/Materials | Discovered exit to Materials (range 16) 760 | -10/Materials | Discovered exit to Materials (range 11) 1298 | -10/Materials | Repaired EM Pulse Gun 1436 | -10/Materials | Discovered exit to Materials (range 4) 1553 | -10/Materials | Entered Mines 1554 | -10/Mines | Met a Derelict bent on vengeance 1620 | -10/Mines | Learned Materials trap positions 1679 | -10/Mines | Assembled infested the area 1684 | -10/Mines | Assisted by a Guerilla fighting off Assembled 1722 | -10/Mines | Discovered exit to Materials (range 11) 1731 | -10/Mines | Core integrity fell below 50% 1743 | -10/Mines | Core integrity fell below 20% 1745 | -10/Mines | Destroyed by D-53 Grenadier with Mini Grenade Launcher Last Messages --------------- 01709_ U-05 Engineer lays Concrete. [Achievement: Slippery One] 01711_ The unstable cave ceiling collapses. 01711_ U-05 Engineer lays Concrete. 01714_ U-05 Engineer builds a Wall. 01716_ U-05 Engineer destroyed. 01722_ Lgt. Assault Rifle destroyed. 01722_ K-01 Serf destroyed. 01722_ EXIT=FOUND: MATERIALS 01723_ Imp. Sensor Array destroyed. 01727_ The unstable cave ceiling collapses. 01730_ U-05 Engineer destroyed. 01731_ K-01 Serf collects debris. 01731_ R-06 Scavenger collects Wheel. 01732_ EM Pulse Gun destroyed. 01732_ R-06 Scavenger destroyed. 01733_ K-01 Serf destroyed. 01736_ The unstable cave ceiling collapses. 01737_ Aluminum Leg destroyed. 01742_ The unstable cave ceiling collapses. Map ----- +----------------------------------------------------+ | ??????????????## ###??? #?###??????????????????? | | ???????????????# % ##?? # #??????????????????? | | ???????????????# ### # #??????????????????? | | ???????????????## ## #??????????????????? | | ????????????????# %! % ##?????????????????? | | ????????????????# * #?????????????????? | | ????????????????# % "### ##????????????????? | | ????????????????#% ##????# %!%! ????????????????? | | ??????????????? #?????# * ##### #??????????? | | ????????????? ??????# #??????????? | | ??????????? #### ##### ##??????????? | | ????????? "% #?????????????????? | | ??????? # % ### ###????????????????? | | ?????? ???? ?### #????????????????? | | ??????? ????? ### #????????????????? | | ?????? ?????? #### # # ##???????????????? | | ??????? ??????? ##??# dd #???????????????? | | ???????##???????? ##??## # #???????????????? | | ????????????????? ????#g #???????????????? | | ????????????????? ????#g #???????????????? | | ?????????????????#???##g #???????????????? | | ???????????????????### # #???????????????? | | ???????????????????# # ! #???????????????? | | ???????????????????# ##???????????????? | | ???????????????????## #????????????????? | | ???????????????????# @ #????????????????? | | ???????????????????## ##????????????????? | | ????????????????????# < ##?????????????????? | | ???????????????????# #??????????????????? | | ???????????????????# # ## #??????????????????? | | ???????????????????## ##?##? ?????????????????? | | ????????????????????###??????####????????????????? | | ?????????????????????????????????????????????????? | | ?????????????????????????????????????????????????? | | ?????????????????????????????????????????????????? | | | | | | | | | | | | | | | | | | | | | | | | | | | | | | | +----------------------------------------------------+ Best States ------------- Heat Dissipation 25 Energy Generation 10 Energy Capacity 125 Matter Stores 300 Matter Capacity 300 Sight Range 16 Robot Scan Range 13 Terrain Scan Range 16 Terrain Scan Density 10 Resistance: KI 35 Resistance: TH 35 Resistance: EX 35 Resistance: EM 35 Resistance: I 35 Resistance: S 35 Resistance: P 35 Evasion (%) 40 Targeting Accuracy 5 Offensive Hacking 20 Item Schematics ----------------- None Robot Schematics ------------------ None Fabricated ------------ Nothing Alien Tech Used ----------------- None Achievements -------------- Slippery One Challenges ------------ None Game ------ Seed PrecisionLatentArray Manual? 0 Play Time 00:15:07 Cumulative 22.1 hours Start 2020.10.08 @ 09:32:08 End 2020.10.08 @ 09:45:45 Sessions 1 Manual Loads 0 Difficulty Explorer Special Mode None Game No. 21 Rogue 2 Adventurer 11 Explorer 8 Win Type - Total 0 Types 0/0/0/0/0/0/0/0/0 Lore% 17 Gallery% 33 Achievement% 24 Wizard Run 0 Options --------- ASCII 0 Keyboard 0 Movement Mouse Keybinds 0 Fullscreen 1 Font 18/Terminus Map View 76x50 Tactical HUD 1 Map Filters NONE Filters NONE Steam 1 RUN: 40fc9638-ea0a-4a61-9d09-9ab0722a84eb